bitfinex/quotes_BTCUSD_20241120
["timestamp","ask_amount","ask_price","bid_price","bid_amount"]
[1732069787869,0.01,91898.0,91894.0,0.023]
[1732069788297,0.01,91898.0,91896.0,0.023]
[1732069788511,0.01,91906.0,91897.0,0.02517617]
[1732069788702,0.01,91908.0,91898.0,0.023]
[1732069788965,0.18788277,91920.0,91902.0,0.023]
[1732069788966,0.01,91906.0,91902.0,0.023]
[1732069789513,0.01,91904.0,91901.0,0.1]
[1732069790005,0.11178243,91919.0,91892.0,0.0008536]
[1732069790006,0.01,91898.0,91892.0,0.0008536]
[1732069790624,0.00858311,91898.0,91893.0,0.023]
[1732069791039,0.00858311,91898.0,91892.0,0.0008536]
[1732069792327,0.00858311,91898.0,91892.0,0.0238536]
[1732069792553,0.00858311,91898.0,91892.0,0.1238536]
[1732069793681,0.00858311,91898.0,91892.0,0.0008536]
[1732069793950,0.00858311,91894.0,91892.0,0.0008536]
[1732069794848,0.00858311,91895.0,91892.0,0.0008536]
[1732069795101,0.00858311,91893.0,91892.0,0.0008536]
[1732069798460,0.00608311,91893.0,91892.0,0.0008536]
[1732069800235,0.00608311,91895.0,91892.0,0.0008536]
[1732069800476,0.0017086,91898.0,91892.0,0.0008536]
[1732069800477,0.00608311,91897.0,91894.0,0.023]
[1732069800719,0.0017086,91898.0,91892.0,0.0008536]
[1732069800720,0.00608311,91895.0,91892.0,0.0008536]
[1732069805908,0.00608311,91893.0,91892.0,0.0008536]
[1732069806601,0.23684566,91893.0,91892.0,0.0008536]
[1732069806842,0.25684566,91893.0,91892.0,0.0008536]
[1732069807312,0.25884566,91893.0,91892.0,0.0008536]
[1732069808276,0.25884566,91893.0,91878.0,0.001708]
[1732069808277,0.02608311,91879.0,91878.0,0.001708]
[1732069808442,0.26156731,91879.0,91878.0,0.001708]
[1732069808659,0.25884566,91879.0,91878.0,0.001708]
[1732069809354,0.00608311,91855.0,91854.0,0.0008542]
[1732069810169,0.00608311,91855.0,91854.0,0.04445581]
[1732069810414,0.00608311,91855.0,91854.0,0.0008542]
[1732069810597,0.11514566,91855.0,91854.0,0.0008542]
[1732069811304,0.13986759,91855.0,91854.0,0.0008542]
[1732069811697,0.21800697,91855.0,91854.0,0.0008542]
[1732069811916,0.02772249,91845.0,91844.0,0.0008542]
[1732069812159,0.13478504,91845.0,91844.0,0.0008542]
[1732069812463,0.13950756,91845.0,91844.0,0.0008542]
[1732069812625,0.21528504,91845.0,91844.0,0.0008542]
[1732069812823,0.26368504,91845.0,91844.0,0.0008542]
[1732069813752,0.26168504,91845.0,91844.0,0.0008542]
[1732069814587,0.26368504,91845.0,91844.0,0.0008542]
[1732069815146,0.26168504,91845.0,91844.0,0.0008542]
[1732069816447,0.19328504,91845.0,91844.0,0.0008542]
[1732069816782,0.00572249,91845.0,91844.0,0.0008542]
[1732069818044,0.00572249,91845.0,91844.0,0.0446793]
[1732069818254,0.00572249,91845.0,91844.0,0.0008542]
[1732069818921,0.11478504,91845.0,91844.0,0.0008542]
[1732069819327,0.11750739,91845.0,91844.0,0.0008542]
[1732069821369,0.11478504,91845.0,91844.0,0.0008542]
[1732069822036,0.1275073,91845.0,91844.0,0.0008542]
[1732069822226,0.2172073,91845.0,91844.0,0.0008542]
[1732069824042,0.2651073,91845.0,91844.0,0.0008542]
[1732069824199,0.26238504,91845.0,91844.0,0.0008542]
[1732069824403,0.26438504,91845.0,91844.0,0.0008542]
[1732069825509,0.26238504,91845.0,91844.0,0.0008542]
[1732069826860,0.26438504,91845.0,91844.0,0.0008542]
[1732069829395,0.36438504,91845.0,91844.0,0.0008542]
[1732069831643,0.36438504,91845.0,91840.0,0.0008538]
[1732069831644,0.25142249,91843.0,91840.0,0.0008538]
[1732069831865,0.02572249,91841.0,91840.0,0.0008538]
[1732069832079,0.36320835,91841.0,91840.0,0.0008538]
[1732069832285,0.36048504,91841.0,91840.0,0.0008538]
[1732069836758,0.26048504,91841.0,91840.0,0.0008538]
[1732069837305,0.26048504,91841.0,91831.0,0.0021078]
[1732069837306,0.02772249,91840.0,91839.0,0.00027504]
[1732069837516,0.13950803,91840.0,91839.0,0.00027504]
[1732069838518,0.13950803,91840.0,91839.0,0.01473707]
[1732069838973,0.13950803,91840.0,91839.0,0.01473708]
[1732069839209,0.13950803,91840.0,91839.0,0.00027504]
[1732069839430,0.13950803,91840.0,91839.0,0.01474416]
[1732069839638,0.13750803,91840.0,91839.0,0.00027504]
[1732069840049,0.13950803,91840.0,91839.0,0.00027504]
[1732069848384,0.2733002,91840.0,91839.0,0.00027504]
[1732069848610,0.27057721,91840.0,91839.0,0.00027504]
[1732069849056,0.37327721,91840.0,91839.0,0.00027504]
[1732069849266,0.53697721,91840.0,91839.0,0.00027504]
[1732069851491,0.42277721,91840.0,91839.0,0.00027504]
[1732069852376,0.42277721,91840.0,91831.0,0.0021078]
[1732069852377,0.20742249,91832.0,91831.0,0.0021078]
[1732069852610,0.35300063,91832.0,91831.0,0.0021078]
[1732069852818,0.35027721,91832.0,91831.0,0.0021078]
[1732069854123,0.00572249,91792.0,91772.0,0.023]
[1732069854329,0.00572249,91792.0,91774.0,0.023]
[1732069854556,0.00572249,91792.0,91775.0,0.0021789]
[1732069854795,0.00572249,91792.0,91776.0,0.023]
[1732069855005,0.00572249,91791.0,91776.0,0.023]
[1732069855218,0.00572249,91787.0,91771.0,0.0004]
[1732069855711,0.00572249,91782.0,91772.0,0.023]
[1732069856132,0.00572249,91782.0,91771.0,0.0004]
[1732069857178,0.00572249,91782.0,91773.0,0.1]
[1732069859558,0.00572249,91786.0,91774.0,0.02517916]
[1732069859909,0.00572249,91782.0,91774.0,0.02517916]
[1732069860862,0.00572249,91782.0,91774.0,0.023]
[1732069861513,0.00572249,91782.0,91774.0,0.02517904]
[1732069861934,0.00572249,91782.0,91774.0,0.023]
[1732069863465,0.00572249,91782.0,91774.0,0.02517904]
[1732069868399,0.00572249,91782.0,91774.0,0.02603384]
[1732069870213,0.00572249,91775.0,91774.0,0.0008548]
[1732069873739,0.12478504,91775.0,91774.0,0.0008548]
[1732069874161,0.12750942,91775.0,91774.0,0.0008548]
[1732069878839,0.13950942,91775.0,91774.0,0.0008548]
[1732069879050,0.26630942,91775.0,91774.0,0.0008548]
[1732069879277,0.26358504,91775.0,91774.0,0.0008548]
[1732069879727,0.12478504,91775.0,91774.0,0.0008548]
[1732069879982,0.12750943,91775.0,91774.0,0.0008548]
[1732069881709,0.13750943,91775.0,91774.0,0.0008548]
[1732069882206,0.11750943,91775.0,91774.0,0.0008548]
[1732069883563,0.12750943,91775.0,91774.0,0.0008548]
[1732069886694,0.12950943,91775.0,91774.0,0.0008548]
[1732069887185,0.26430943,91775.0,91774.0,0.0008548]
[1732069887446,0.26158504,91775.0,91774.0,0.0008548]
[1732069889049,0.26158504,91775.0,91762.0,0.0008543]
[1732069889050,0.01572249,91763.0,91762.0,0.0008543]
[1732069889297,0.36231022,91763.0,91762.0,0.0008543]
[1732069889551,0.36231022,91763.0,91752.0,0.0008543]
[1732069889552,0.15052249,91753.0,91752.0,0.0008543]
[1732069889761,0.47129848,91753.0,91752.0,0.0008543]
[1732069889990,0.25052249,91749.0,91736.0,0.23660362]
[1732069890207,0.35958504,91749.0,91736.0,0.23660362]
[1732069890431,0.36158504,91749.0,91736.0,0.23660362]
[1732069891167,0.12772249,91748.0,91736.0,0.23660362]
[1732069891398,0.20622249,91737.0,91736.0,0.23660362]
[1732069891620,0.31528504,91737.0,91736.0,0.23660362]
[1732069893226,0.21528504,91737.0,91736.0,0.23660362]
[1732069893448,0.21528504,91737.0,91736.0,0.20225787]
[1732069893694,0.21801073,91737.0,91736.0,0.20225787]
[1732069894598,0.00572249,91705.0,91702.0,0.023]
[1732069895159,0.00272596,91725.0,91702.0,0.023]
[1732069895160,0.00572249,91722.0,91703.0,0.00054882]
[1732069895366,0.00572249,91722.0,91705.0,0.023]
[1732069895579,0.00572249,91722.0,91706.0,0.00054793]
[1732069896745,0.00572249,91722.0,91707.0,0.023]
[1732069896966,0.01,91722.0,91690.0,0.00216535]
[1732069897190,0.01,91722.0,91681.0,0.002]
[1732069897191,0.01,91722.0,91692.0,0.10906255]
[1732069897704,0.01,91743.0,91675.0,0.00072124]
[1732069897705,0.01,91710.0,91682.0,0.04514282]
[1732069897937,0.01,91710.0,91684.0,0.10906255]
[1732069898635,0.01,91708.0,91684.0,0.10906255]
[1732069899078,0.01,91708.0,91685.0,0.1]
[1732069899284,0.01,91708.0,91687.0,0.123]
[1732069900214,0.01,91708.0,91688.0,0.0768]
[1732069900439,0.01,91708.0,91689.0,0.023]
[1732069901556,0.02,91713.0,91691.0,0.123]
[1732069901782,0.02,91713.0,91691.0,0.23206255]
[1732069903756,0.01,91708.0,91691.0,0.123]
[1732069903973,0.01,91708.0,91691.0,0.023]
[1732069904408,0.01,91708.0,91690.0,0.023]
[1732069905110,0.01,91708.0,91691.0,0.0008552]
[1732069905392,0.01,91708.0,91702.0,0.1]
[1732069906208,0.01,91708.0,91691.0,0.0008552]
[1732069907304,0.01,91708.0,91702.0,0.1]
[1732069908177,0.01,91708.0,91691.0,0.0008552]
[1732069910132,0.01,91708.0,91702.0,0.1]
[1732069910644,0.01,91708.0,91691.0,0.0008552]
[1732069911729,0.01,91708.0,91702.0,0.1]
[1732069913027,0.01,91708.0,91691.0,0.0008552]
[1732069913695,0.01,91708.0,91703.0,0.1]
[1732069914444,0.0757,91706.0,91691.0,0.0008552]
[1732069914652,0.01,91696.0,91691.0,0.0008552]
[1732069921693,0.01,91696.0,91695.0,0.1]
[1732069922132,0.01,91692.0,91691.0,0.0008552]
[1732069924573,0.01,91692.0,91691.0,0.1008552]
[1732069925219,0.01,91692.0,91691.0,0.0008552]
[1732069927698,0.1996891,91692.0,91691.0,0.0008552]
[1732069929791,0.01,91692.0,91691.0,0.0008552]
[1732069930019,0.01,91693.0,91691.0,0.0008552]
[1732069930516,0.01,91692.0,91691.0,0.0008552]
[1732069931223,0.01,91693.0,91691.0,0.0008552]
[1732069931883,0.01,91693.0,91692.0,0.01450345]
[1732069933058,0.12906255,91693.0,91692.0,0.01450345]
[1732069933267,0.02,91693.0,91692.0,0.01450345]
[1732069934011,0.01,91693.0,91692.0,0.01450345]
[1732069934896,0.0117114,91696.0,91692.0,0.01450345]
[1732069934897,0.0017114,91696.0,91692.0,0.01450345]
[1732069935097,0.0017114,91696.0,91693.0,0.11450345]
[1732069935314,0.0017114,91696.0,91694.0,0.01450345]
[1732069935540,0.0017114,91696.0,91695.0,0.01450345]
[1732069936188,0.0017114,91696.0,91695.0,0.11450345]
[1732069936835,0.0017114,91696.0,91695.0,0.1]
[1732069937786,0.0017114,91696.0,91695.0,0.11450839]
[1732069937787,0.0937114,91696.0,91695.0,0.11450839]
[1732069938033,0.0937114,91696.0,91695.0,0.21220091]
[1732069938229,0.0937114,91696.0,91695.0,0.11450839]
[1732069938452,0.21277395,91696.0,91695.0,0.01450839]
[1732069938873,0.21277395,91696.0,91692.0,0.1]
[1732069938874,0.01,91694.0,91692.0,0.1]
[1732069939755,0.01,91694.0,91691.0,0.0008552]
[1732069939981,0.01,91694.0,91692.0,0.01450833]
[1732069940222,0.01,91694.0,91693.0,0.01450833]
[1732069940436,0.01,91694.0,91691.0,0.0008552]
[1732069940639,0.01,91694.0,91693.0,0.01450939]
[1732069940845,0.01,91694.0,91692.0,0.01450939]
[1732069941300,0.01,91694.0,91693.0,0.01450939]
[1732069942409,0.01,91694.0,91691.0,0.0008552]
[1732069942632,0.01,91692.0,91691.0,0.0008552]
[1732069942860,0.11906255,91692.0,91691.0,0.0008552]
[1732069943110,0.11906255,91692.0,91691.0,0.01536578]
[1732069943111,0.25926255,91692.0,91691.0,0.01536578]
[1732069943576,0.25926255,91692.0,91691.0,0.01536704]
[1732069944473,0.25926255,91692.0,91691.0,0.0008552]
[1732069949306,0.27926255,91692.0,91691.0,0.0008552]
[1732069951221,0.1649,91683.0,91682.0,0.0008548]
[1732069951352,0.27396255,91683.0,91682.0,0.0008548]
[1732069952156,0.03,91672.0,91671.0,0.0004]
[1732069952373,0.25669048,91672.0,91671.0,0.0004]
[1732069952594,0.26396255,91672.0,91671.0,0.0004]
[1732069952879,0.25396255,91672.0,91671.0,0.0004]
[1732069953629,0.20776255,91672.0,91671.0,0.0004]
[1732069954908,0.20776255,91672.0,91671.0,0.0012557]
[1732069956243,0.00996,91672.0,91671.0,0.0012557]
[1732069956506,0.0199493,91672.0,91671.0,0.0012557]
[1732069957648,0.0787,91694.0,91671.0,0.1242557]
[1732069957649,0.0099493,91679.0,91671.0,0.1242557]
[1732069957779,0.01,91686.0,91671.0,0.1242557]
[1732069958058,0.0099493,91683.0,91673.0,0.123]
[1732069958228,0.0099493,91679.0,91673.0,0.19749924]
[1732069958388,0.0099493,91679.0,91673.0,0.1]
[1732069958389,0.01,91674.0,91673.0,0.1]
[1732069959243,0.19048956,91678.0,91671.0,0.0012557]
[1732069959244,0.01,91672.0,91671.0,0.0012557]
[1732069959450,0.12901185,91672.0,91671.0,0.0012557]
[1732069961365,0.20731185,91672.0,91671.0,0.0012557]
[1732069961522,0.26763943,91672.0,91671.0,0.0012557]
[1732069961734,0.26491185,91672.0,91671.0,0.0012557]
[1732069964055,0.25491185,91672.0,91671.0,0.0012557]
[1732069968754,0.26491185,91672.0,91671.0,0.0012557]
[1732069970032,0.26491185,91672.0,91656.0,0.0147308]
[1732069970033,0.1558493,91657.0,91656.0,0.0147308]
[1732069970333,0.1558493,91657.0,91651.0,0.0004]
[1732069970334,0.0419493,91652.0,91651.0,0.0004]
[1732069970345,0.27964052,91652.0,91651.0,0.0004]
[1732069970588,0.27691185,91652.0,91651.0,0.0004]
[1732069977656,0.27491185,91652.0,91651.0,0.0004]
[1732069978323,0.20731185,91652.0,91651.0,0.0004]
[1732069978573,0.21003996,91652.0,91651.0,0.0004]
[1732069979003,0.13173996,91652.0,91651.0,0.0004]
[1732069979441,0.13173996,91652.0,91651.0,0.0012559]
[1732069979710,0.12901185,91652.0,91651.0,0.0012559]
[1732069980161,0.10906255,91652.0,91651.0,0.0012559]
[1732069980402,0.12901185,91652.0,91651.0,0.0012559]
[1732069980634,0.01,91655.0,91651.0,0.0012559]
[1732069980882,0.0099493,91656.0,91651.0,0.0012559]
[1732069980883,0.01,91656.0,91651.0,0.0012559]
[1732069981094,0.01,91663.0,91651.0,0.0461927]
[1732069981355,0.01,91663.0,91651.0,0.1461927]
[1732069981513,0.10906255,91668.0,91651.0,0.10120051]
[1732069981514,0.0199493,91664.0,91651.0,0.10120051]
[1732069981720,0.0017118,91672.0,91652.0,0.023]
[1732069981721,0.0117118,91672.0,91652.0,0.023]
[1732069982255,0.0017118,91672.0,91653.0,0.10906255]
[1732069982529,0.0017118,91672.0,91654.0,0.123]
[1732069982653,0.0017118,91672.0,91657.0,0.023]
[1732069982839,0.0017118,91672.0,91659.0,0.123]
[1732069983070,0.0017118,91672.0,91659.0,0.23206255]
[1732069983973,0.0017118,91672.0,91651.0,0.14627885]
[1732069986273,0.0017118,91672.0,91654.0,0.023]
[1732069986624,0.0017118,91672.0,91656.0,0.023]
[1732069987482,0.0017118,91672.0,91658.0,0.123]
[1732069987901,0.0017118,91672.0,91659.0,0.10906255]
[1732069988126,0.0017118,91672.0,91660.0,0.1988]
[1732069988332,0.0017118,91672.0,91662.0,0.123]
[1732069988551,0.0017118,91672.0,91664.0,0.123]
[1732069988774,0.0017118,91672.0,91666.0,0.123]
[1732069988979,0.0017118,91672.0,91666.0,0.23206255]
[1732069989222,0.0017118,91672.0,91667.0,0.10906255]
[1732069989437,0.0017118,91672.0,91668.0,0.123]
[1732069989684,0.0017118,91672.0,91668.0,0.23206255]
[1732069990394,0.0017118,91672.0,91668.0,0.123]
[1732069990632,0.0017118,91672.0,91664.0,0.002]
[1732069990633,0.0017118,91672.0,91670.0,0.123]
[1732069990882,0.0017118,91672.0,91667.0,0.09713125]
[1732069990883,0.0017116,91682.0,91672.0,0.123]
[1732069991033,0.0017116,91682.0,91674.0,0.123]
[1732069991289,0.0017116,91682.0,91675.0,0.10906255]
[1732069991495,0.0017116,91682.0,91676.0,0.123]
[1732069991715,0.0017114,91696.0,91676.0,0.23206255]
[1732069992139,0.0017114,91696.0,91678.0,0.123]
[1732069992361,0.0017114,91696.0,91680.0,0.123]
[1732069992614,0.0017114,91696.0,91682.0,0.123]
[1732069992830,0.0017114,91696.0,91682.0,0.23206255]
[1732069993716,0.0017114,91696.0,91684.0,0.1]
[1732069999455,0.0099493,91691.0,91677.0,0.04406496]
[1732069999626,0.0199493,91683.0,91677.0,0.04406496]
[1732069999815,0.01,91680.0,91652.0,0.09711238]
[1732070000017,0.1248,91695.0,91652.0,0.09711238]
[1732070000018,0.01,91670.0,91654.0,0.09711238]
[1732070000209,0.01,91670.0,91651.0,0.04622964]
[1732070000777,0.01,91670.0,91652.0,0.09711238]
[1732070000778,0.01,91668.0,91652.0,0.09711238]
[1732070000909,0.0099493,91667.0,91651.0,0.04550051]
[1732070001352,0.0099493,91667.0,91651.0,0.00120051]
[1732070002687,0.0099493,91667.0,91656.0,0.1]
[1732070003156,0.0099493,91667.0,91651.0,0.00120051]
[1732070004052,0.0096763,91667.0,91651.0,0.00120051]
[1732070004319,0.00960682,91667.0,91651.0,0.00120051]
[1732070004800,0.00960682,91667.0,91634.0,0.1]
[1732070004801,0.01,91667.0,91634.0,0.023]
[1732070005049,0.01,91667.0,91645.0,0.10906255]
[1732070005293,0.01,91665.0,91635.0,0.10906255]
[1732070006457,0.01,91663.0,91635.0,0.15351844]
[1732070006652,0.0798,91669.0,91635.0,0.15351844]
[1732070006653,0.02,91655.0,91635.0,0.04445589]
[1732070006932,0.01,91649.0,91635.0,0.04445589]
[1732070007164,0.0767,91648.0,91615.0,0.14566857]
[1732070007381,0.0767,91648.0,91620.0,0.04435421]
[1732070007598,0.01,91646.0,91621.0,0.10906255]
[1732070008272,0.01,91646.0,91613.0,0.04348331]
[1732070008483,0.01,91639.0,91614.0,0.10906255]
[1732070008735,0.1258,91648.0,91614.0,0.10906255]
[1732070008736,0.01,91648.0,91620.0,0.10906255]
[1732070008969,0.01,91646.0,91621.0,0.1]
[1732070009196,0.01,91646.0,91622.0,0.10906255]
[1732070009402,0.01,91648.0,91623.0,0.1]
[1732070009657,0.01,91646.0,91623.0,0.1]
[1732070010347,0.01,91648.0,91623.0,0.1]
[1732070011505,0.00997507,91646.0,91626.0,9.8e-05]
[1732070011746,0.009902,91648.0,91626.0,9.8e-05]
[1732070011998,0.009902,91648.0,91627.0,0.10906255]
[1732070012286,0.009902,91648.0,91628.0,0.1]
[1732070015791,0.009902,91648.0,91625.0,9.8e-05]
[1732070015792,0.00997507,91646.0,91625.0,9.8e-05]
[1732070016299,0.00997507,91646.0,91624.0,9.8e-05]
[1732070016427,0.00997507,91646.0,91623.0,0.04464351]
[1732070017345,0.00997507,91646.0,91625.0,9.8e-05]
[1732070017919,0.00997507,91646.0,91623.0,0.04464351]
[1732070017920,0.00997507,91646.0,91624.0,9.8e-05]
[1732070018130,0.1258,91647.0,91625.0,9.8e-05]
[1732070018406,0.00997507,91646.0,91625.0,9.8e-05]
[1732070019487,0.00997507,91646.0,91623.0,0.04464351]
[1732070019941,0.009902,91643.0,91623.0,0.04464351]
[1732070021984,0.08997507,91638.0,91623.0,0.04464351]
[1732070022274,0.009902,91636.0,91623.0,0.04464351]
[1732070024760,0.089902,91637.0,91623.0,0.04464351]
[1732070024940,0.009902,91636.0,91623.0,0.04464351]
[1732070026057,0.009902,91636.0,91623.0,0.04281739]
[1732070032270,0.08,91637.0,91624.0,0.14500564]
[1732070032426,0.08,91637.0,91625.0,0.1]
[1732070032892,0.08,91637.0,91623.0,0.04281739]
[1732070032893,0.08,91637.0,91627.0,0.1]
[1732070033124,0.08,91637.0,91628.0,0.10906255]
[1732070033343,0.087602,91647.0,91629.0,0.1]
[1732070033584,0.087602,91647.0,91630.0,0.10906255]
[1732070033859,0.087602,91647.0,91631.0,0.1]
[1732070033860,0.0777,91647.0,91631.0,0.1]
[1732070034081,0.0777,91647.0,91631.0,0.20906255]
[1732070035427,0.011611,91648.0,91623.0,0.04291539]
[1732070035428,0.1235,91632.0,91623.0,0.04281739]
[1732070035707,0.1235,91625.0,91623.0,0.04281739]
[1732070035906,0.0777,91624.0,91623.0,0.04281739]
[1732070038073,0.087602,91624.0,91623.0,0.04281739]
[1732070041276,0.0777,91624.0,91623.0,0.04281739]
[1732070042397,0.087602,91624.0,91623.0,0.04281739]
[1732070045402,0.087529,91624.0,91623.0,0.04281739]
[1732070045608,0.08750978,91624.0,91623.0,0.04281739]
[1732070045862,0.09748485,91624.0,91623.0,0.04281739]
[1732070046932,0.14308485,91624.0,91623.0,0.04281739]
[1732070047786,0.2521474,91624.0,91623.0,0.04281739]
[1732070050760,0.2538568,91624.0,91623.0,0.04281739]
[1732070051398,0.13481918,91624.0,91623.0,0.04281739]
[1732070052726,0.12491718,91624.0,91623.0,0.04281739]
[1732070053886,0.07931718,91624.0,91623.0,0.04281739]
[1732070056288,0.0017094,91624.0,91623.0,0.29915117]
[1732070056524,0.0017094,91624.0,91623.0,0.14281739]
[1732070056725,0.0017094,91624.0,91623.0,0.38695311]
[1732070057186,0.0017094,91636.0,91623.0,0.28557303]
[1732070057397,0.0017094,91636.0,91635.0,0.29528599]
[1732070057613,0.0017094,91636.0,91635.0,0.1]
[1732070057832,0.0491094,91636.0,91635.0,0.1]
[1732070058045,0.0491094,91636.0,91635.0,0.24646935]
[1732070058251,0.0491094,91636.0,91635.0,0.1]
[1732070058562,0.0491094,91636.0,91635.0,0.24646935]
[1732070058701,0.0491094,91636.0,91623.0,0.04281739]
[1732070058702,0.0491094,91636.0,91634.0,0.1]
[1732070058911,0.0491094,91636.0,91635.0,0.24648114]
[1732070059137,0.0491094,91636.0,91635.0,0.1]
[1732070059355,0.0017094,91636.0,91635.0,0.1]
[1732070059834,0.0017094,91636.0,91635.0,0.39292898]
[1732070060037,0.0017094,91636.0,91635.0,0.1]
[1732070060991,0.0017094,91636.0,91635.0,0.39292898]
[1732070061444,0.0017094,91636.0,91633.0,0.1]
[1732070061697,0.0017094,91636.0,91632.0,0.29292898]
[1732070061698,0.0017094,91636.0,91635.0,0.1]
[1732070061887,0.0017094,91636.0,91635.0,0.20906255]
[1732070062124,0.0474,91659.0,91635.0,0.20906255]
[1732070062345,0.091702,91658.0,91647.0,0.24644541]
[1732070062798,0.0818,91658.0,91647.0,0.24644541]
[1732070063038,0.0818,91658.0,91647.0,0.1]
[1732070063941,0.0818,91658.0,91641.0,9.8e-05]
[1732070063942,0.0818,91658.0,91645.0,0.1]
[1732070064122,0.0818,91658.0,91644.0,0.39292898]
[1732070064390,0.0818,91658.0,91645.0,0.10906255]
[1732070064640,0.009902,91667.0,91645.0,0.10906255]
[1732070064641,0.0818,91665.0,91646.0,0.1]
[1732070064914,0.0818,91665.0,91647.0,0.20906255]
[1732070065055,0.0818,91665.0,91648.0,0.1]
[1732070065288,0.0818,91665.0,91661.0,0.19757734]
[1732070065512,0.0818,91665.0,91662.0,0.09757734]
[1732070065773,0.0818,91665.0,91663.0,0.19757734]
[1732070066450,0.0818,91665.0,91663.0,0.1]
[1732070066904,0.0818,91665.0,91662.0,0.09757734]
[1732070067349,0.0818,91665.0,91661.0,0.09757734]
[1732070068308,0.0818,91665.0,91660.0,0.19757734]
[1732070068612,0.09749816,91718.0,91660.0,0.19757734]
[1732070068613,0.0755,91683.0,91666.0,9.8e-05]
[1732070068782,0.0755,91693.0,91681.0,9.8e-05]
[1732070069121,0.009902,91689.0,91673.0,0.19744092]
[1732070069308,0.0755,91685.0,91673.0,0.1]
[1732070069545,0.0755,91685.0,91679.0,0.1]
[1732070069704,0.0755,91685.0,91676.0,0.19744092]
[1732070069705,0.0755,91685.0,91676.0,0.1]
[1732070070595,0.0755,91685.0,91668.0,0.09744092]
[1732070070844,0.0755,91685.0,91666.0,0.1]
[1732070070845,0.0755,91685.0,91666.0,0.09744092]
[1732070071293,0.0755,91685.0,91665.0,0.1]
[1732070071294,0.0755,91685.0,91665.0,0.19744092]
[1732070071506,0.0755,91685.0,91666.0,9.8e-05]
[1732070071935,0.0755,91685.0,91667.0,0.09744092]
[1732070072427,0.0755,91685.0,91664.0,0.35532193]
[1732070072428,0.0755,91685.0,91665.0,0.09744092]
[1732070072621,0.0755,91685.0,91666.0,9.8e-05]
[1732070072838,0.0755,91685.0,91667.0,0.10906255]
[1732070073051,0.0755,91685.0,91669.0,9.8e-05]
[1732070073330,0.0755,91685.0,91670.0,0.1]
[1732070075438,0.0755,91685.0,91668.0,0.00038782]
[1732070077420,0.0755,91685.0,91676.0,0.1]
[1732070078300,0.0755,91685.0,91664.0,9.8e-05]
[1732070078567,0.0755,91685.0,91665.0,0.1]
[1732070078790,0.00997507,91679.0,91665.0,0.1]
[1732070079018,0.00997507,91679.0,91663.0,0.04473309]
[1732070079019,0.0755,91675.0,91663.0,0.04473309]
[1732070079470,0.0755,91675.0,91655.0,0.0085774]
[1732070080590,0.0755,91675.0,91655.0,0.05184647]
[1732070080798,0.0755,91675.0,91653.0,9.8e-05]
[1732070081009,0.0755,91675.0,91655.0,0.1]
[1732070082098,0.0789,91671.0,91648.0,9.8e-05]
[1732070082318,0.0789,91671.0,91650.0,0.1]
[1732070082572,0.0789,91671.0,91650.0,0.10906255]
[1732070082802,0.0789,91671.0,91651.0,0.1]
[1732070083883,0.0789,91671.0,91652.0,9.8e-05]
[1732070084108,0.0789,91671.0,91651.0,0.1]
[1732070084568,0.0789,91671.0,91652.0,9.8e-05]
[1732070086144,0.0789,91671.0,91654.0,0.1]
[1732070086374,0.0789,91671.0,91654.0,0.20906255]
[1732070087472,0.0789,91671.0,91652.0,0.00979964]
[1732070087473,0.0789,91671.0,91656.0,9.8e-05]
[1732070087730,0.045,91678.0,91658.0,0.1]
[1732070087961,0.0789,91678.0,91660.0,0.1]
[1732070088159,0.0789,91678.0,91661.0,0.10906255]
[1732070088380,0.0789,91678.0,91662.0,0.1]
[1732070088592,0.0789,91678.0,91669.0,9.8e-05]
[1732070088788,0.0017088,91685.0,91669.0,9.8e-05]
[1732070088789,0.0806088,91685.0,91670.0,0.1]
[1732070089001,0.0806088,91685.0,91673.0,9.8e-05]
[1732070089214,0.0806088,91685.0,91674.0,0.10906255]
[1732070089424,0.0806088,91685.0,91675.0,0.1]
[1732070089634,0.0806088,91685.0,91675.0,0.20916055]
[1732070091000,0.0482,91695.0,91680.0,9.8e-05]
[1732070091001,0.0628563,91693.0,91680.0,9.8e-05]
[1732070091317,0.00997507,91706.0,91685.0,9.8e-05]
[1732070091318,0.0482,91705.0,91685.0,9.8e-05]
[1732070091413,0.0482,91705.0,91682.0,0.1]
[1732070091414,0.0482,91705.0,91686.0,9.8e-05]
[1732070094193,0.0789,91699.0,91686.0,9.8e-05]
[1732070096596,0.0789,91699.0,91686.0,0.04486138]
[1732070097473,0.0789,91699.0,91686.0,0.04476338]
[1732070097689,0.0789,91699.0,91686.0,0.04486138]
[1732070097917,0.0789,91699.0,91686.0,9.8e-05]
[1732070098135,0.0789,91699.0,91685.0,9.8e-05]
[1732070098357,0.0789,91699.0,91686.0,9.8e-05]
[1732070100359,0.0789,91699.0,91692.0,9.8e-05]
[1732070100572,0.0789,91710.0,91697.0,9.8e-05]
[1732070100784,0.0789,91710.0,91688.0,0.0971106]
[1732070100785,0.0789,91710.0,91701.0,9.8e-05]
[1732070101799,0.0017082,91716.0,91699.0,0.1]
[1732070101800,0.0017082,91716.0,91705.0,9.8e-05]
[1732070102011,0.0017082,91716.0,91707.0,0.1]
[1732070102187,0.0017082,91716.0,91709.0,0.1]
[1732070102632,0.0017082,91716.0,91710.0,0.02404338]
[1732070103117,0.0017082,91716.0,91711.0,0.03404069]
[1732070103600,0.0017082,91716.0,91709.0,0.1]
[1732070103601,0.0017082,91716.0,91712.0,0.02404338]
[1732070104760,0.0017082,91716.0,91709.0,0.1]
[1732070104761,0.0017082,91716.0,91713.0,0.20906255]
[1732070107363,0.0482,91734.0,91720.0,9.8e-05]
[1732070107622,0.0482,91743.0,91724.0,9.8e-05]
[1732070107849,0.0482,91743.0,91722.0,0.1]
[1732070107850,0.0482,91743.0,91730.0,9.8e-05]
[1732070108185,0.00997507,91752.0,91731.0,0.1]
[1732070108369,0.0482,91753.0,91732.0,9.8e-05]
[1732070108586,0.0482,91753.0,91734.0,0.1]
[1732070108808,0.0482,91753.0,91735.0,0.10906255]
[1732070109040,0.0482,91753.0,91736.0,0.1]
[1732070109288,0.0482,91753.0,91738.0,0.1]
[1732070109518,0.0482,91753.0,91739.0,0.10906255]
[1732070109768,0.0482,91753.0,91739.0,0.20906255]
[1732070110025,0.0482,91753.0,91739.0,0.23882937]